{"text_format":"1","workbook":"xlsx","n_sheets":8,"sheets":["Sommaire","Mesurages et Visites (ETCS)","Matériel léger (ETCS)","Matériel demi-lourd (ETCS)","Mesurage et Visites (SL)","Matériel léger (SL)","Matériel demi-lourd (SL)","Risicomatrix"],"not_rendered":{"charts":0,"images":20,"macros":1,"external_links":0,"defined_names":8,"comments":6,"pivot_tables":0},"unopened":[],"bounds":{"document_bytes":16777216,"sheet_cells":100000,"rows_first":2000,"rows_last":500,"rows_between":2000,"halvings":0,"cell_chars":16384,"cell_head_chars":4096},"cells_cut":0,"cells_raw":0,"read":"whole","date_system":"1900"}

{"sheet":"Sommaire","index":0,"n_rows":25,"n_cols":10,"rows_kept":25,"cut":false,"hidden":false,"merged":[[16,0,16,9],[24,0,24,9],[1,0,2,9],[11,0,11,8],[5,0,8,9],[13,1,14,9]]}
["Annexe 1 - Circulaire 05 I-AM/2022"]
["Matrice d'analyse de risques Type I"]
[]
[]
[]
["Remarque: \nVous devez répondre aux 3 questions afin de poursuivre votre analyse de risques"]
[]
[]
[]
[]
[]
["1. L’activité entraine une Modification des conditions de sécurité et/ou d’exploitation ?",null,null,null,null,null,null,null,null,"NON"]
[]
[null,{"$f":"IF(J12=\"OUI\",\"La voie doit être mise hors service\",\"\")","v":""}]
[]
[]
["2. Travaux sur ligne ETCS ?\nLignes ETCS :\n- signalisation de cabine et signalisation latérale ;\n- signalisation de cabine."]
[]
[]
[]
[]
[]
[]
[]
["3. Travaux sur ligne équipée de la signalisation latérale"]

{"sheet":"Mesurages et Visites (ETCS)","index":1,"n_rows":19,"n_cols":17,"rows_kept":19,"cut":false,"hidden":false,"merged":[[12,3,18,6],[1,0,1,7],[2,1,2,7],[3,1,3,2],[3,6,3,7],[4,1,4,2]]}
["ANNEXE 1 - Circulaire 05 I-AM/2022"]
["Travaux avec empiètement potentiel type I - Analyse de risques pour déterminer la méthodologie de protection"]
["Type d'activité analysée ","Mesurages et Visites sur ligne ETCS"]
["Référence du chantier ou Activité",null,null,"Date du chantier",null,"Responsable du chantier"]
["Délimitation de la zone de chantier (de PK à PK) "]
[]
["Numéro","Critères d'évaluation","A","B","C","D","Réponse",null,"Commentaires",null,null,"A","B","C","D"]
[1,"Vitesse du trafic","V>160km/h","40km/h<V≤160km/h","V≤ 40km/h",null,"A",null,"Impact sur le facteur de gravité: \nVitesse autorisée maximum 40 km / h: Facteur de réduction du risque 0.2 (autrement dit: on estime que la gravité potentielle d'une collision à basse vitesse est de seulement 1/5 eme).",null,{"$f":"IF(G8=\"D\",O8,IF(G8=\"C\",N8,IF(G8=\"B\",M8,IF(G8=\"A\",L8,1))))","v":1},1,1,0.2]
[2,"Distance entre zone de chantier et voie en service","Dans la zone\ndangereuse","Dans la zone orange","Dans la zone jaune","Dans la zone verte","A",null,"Influence sur la féquence éventuelle du scénario d'accident\nDistance  S > 4,5m : Facteur de reduction du risque 0,008 (autrement dit: on estime de la frequence potentielle est de seulement 1/125eme)",null,{"$f":"IF(G9=\"D\",O9,IF(G9=\"C\",N9,IF(G9=\"B\",M9,IF(G9=\"A\",L9,1))))","v":1},1,0.05,{"$f":"1/100","v":0.01},{"$f":"1/125","v":8.0000000000000002E-3}]
[3,"Temps / Fréquence d'empiétement","Empiètement à\ncaractère régulier (plus de 4\nempiètements par heure ou\nplus de 15 minutes par heure)","Empiètement à caractère\nponctuel (maximum 4 empiètements\npar heure\net au maximum 15 minutes par\nheure)","Empiètement non prévu","Risque d'empiètement maitrisé par la mise en place d'une séparation physique (safety fence, ...)","A",{"$f":"IF(AND(G9=\"A\")*(G10<>\"A\"),\"Erreur, si travaux dans la zone dangereuse: vous devez indiquer empiètement à caractère régulier\",\"\")","v":""},"Influence sur la féquence éventuelle du scénario d'accident\nEmpiètement  non prévisible : Facteur de reduction du risque 0,01 (autrement dit: on estime de la frequence potentielle est de seulement 1/100eme)\nEmpiètement ponctuel : Facteur de reduction du risque 0,5 (autrement dit: on estime que la fréquence potentiellle est de 1/2 eme)",null,{"$f":"IF(G10=\"D\",O10,IF(G10=\"C\",N10,IF(G10=\"B\",M10,IF(G10=\"A\",L10,1))))","v":1},1,0.5,{"$f":"1/100","v":0.01},1E-4]
[4,"Nombre d'agents","Plus de 4 personnes","3 à 4 personnes","1 à 2 personnes",null,"A",null,"Influence sur la gravité : nombre d'agents / 2: Facteur de réduction du risque de 0.5",null,{"$f":"IF(G11=\"D\",O11,IF(G11=\"C\",N11,IF(G11=\"B\",M11,IF(G11=\"A\",L11,1))))","v":1},1,0.75,0.5]
[]
["Résultat en fonction des réponses données","Score le plus fort",null,"Remarques : \n\nL'analyse de risque permet de déterminer les mesures de protection minimales.\n\nSi les conditions d’exécution (visibilité, conditions d’exploitation, moyens humains, méthodes d’exécution) ne permettent pas d'appliquer la mesure de protection minimale, une mesure plus restrictive doit être appliquée en respectant la hiérarchie  des mesures de protection.\n\n\n\n\n\n\n\n\n\n\n"]
["Niveau de risque:",{"$f":"LARGE(P15:Q15,1)","v":8},null,null,null,null,null,null,null,"GRAV",null,{"$f":"IF(M14<1,\"1\",M14)","v":4},{"$f":"LOG((5^N14*K11*K8),5)","v":4},4,null,"score conditionnel (avec réglementation)","score de l'analyse de risque"]
["Groupe de mesure minimale:",{"$f":"IF(B14>=10,\"Voie hors service\",IF(AND(9<=B14,B14<10),\"Blocage des mouvements avec matérialisation\",IF(AND(8<=B14,B14<9),\"Blocage des mouvements sans matérialisation\",IF(AND(7<=B14,B14<8),\"Dispositif d'annonce\",IF(AND(6<=B14,B14<7),\"Délimitation de la zone de chantier\",IF(B14<6,\"Pas de mesure vis-à-vis du traffic\"))))))","v":"Blocage des mouvements sans matérialisation"},null,null,null,null,null,null,null,"FREQ",null,{"$f":"IF(M15<1,\"1\",M15)","v":3.0000000000000004},{"$f":"LOG((5^N15*K9*K10),5)","v":3.0000000000000004},3,null,{"$f":"IF(AND(G8=\"A\",(OR(G10=\"A\",G10=\"B\"))),(8),IF(OR(G10=\"A\",G10=\"B\"),(7),IF(AND(G10=\"C\",G9=\"B\"),6,(L14+L15))))","v":8},{"$f":"L14+L15","v":7}]
["Sous groupe de mesure minimale:",{"$f":"IF(AND(B15=\"Délimitation de la zone de chantier\",G11<>\"A\"),\"Délimitation matérielle - Balisage ou Agent Garde-Frontière\",IF(AND(B15=\"Délimitation de la zone de chantier\",G11=\"A\"),\"Délimitation matérielle - Balisage\",IF(AND(B15=\"Dispositif d'annonce\",(OR(G10=\"B\")),G11=\"C\"),\"Vigie\",IF(AND(B15=\"Dispositif d'annonce\",(OR(G10=\"A\",G10=\"B\"))),\"Factionnaire radio avec couverture\",IF(AND(B15=\"Dispositif d'annonce\",G11<>\"C\"),\"Factionnaire(s)\",\"\")))))","v":""}]
["Commentaire:"]
["Groupe de mesure selectionné:"]
["Si Autre :"]

{"sheet":"Matériel léger (ETCS)","index":2,"n_rows":19,"n_cols":17,"rows_kept":19,"cut":false,"hidden":false,"merged":[[1,0,1,7],[2,1,2,7],[12,3,18,6],[3,1,3,2],[3,6,3,7],[4,1,4,2]]}
["ANNEXE 1 - Circulaire 05 I-AM/2022"]
["Travaux avec empiètement potentiel type I - Analyse de risques pour déterminer la méthodologie de protection"]
["Type d'activité analysée ","Intervention avec matériel léger (< 35kg) sur ligne ETCS"]
["Référence du chantier ou Activité",null,null,"Date du chantier",null,"Responsable du chantier"]
["Délimitation de la zone de chantier (de PK à PK) "]
[]
["Numéro","Critères d'évaluation","A","B","C","D","Réponse",null,"Commentaires",null,null,"A","B","C","D"]
[1,"Vitesse du trafic","V>160km/h","40km/h<V≤160km/h","V≤ 40km/h",null,"A",null,"Impact sur le facteur de gravité: \nVitesse autorisée maximum 40 km / h: Facteur de réduction du risque 0.2 (autrement dit: on estime que la gravité potentielle d'une collision à basse vitesse est de seulement 1/5 eme).",null,{"$f":"IF(G8=\"D\",O8,IF(G8=\"C\",N8,IF(G8=\"B\",M8,IF(G8=\"A\",L8,1))))","v":1},1,1,0.2]
[2,"Distance entre zone de chantier et voie en service","Dans la zone\ndangereuse","Dans la zone orange","Dans la zone jaune","Dans la zone verte","A",null,"Influence sur la féquence éventuelle du scénario d'accident\nDistance  S > 4,5m : Facteur de reduction du risque 0,008 (autrement dit: on estime de la frequence potentielle est de seulement 1/125eme)",null,{"$f":"IF(G9=\"D\",O9,IF(G9=\"C\",N9,IF(G9=\"B\",M9,IF(G9=\"A\",L9,1))))","v":1},1,0.05,{"$f":"1/100","v":0.01},{"$f":"1/125","v":8.0000000000000002E-3}]
[3,"Temps / Fréquence d'empiétement","Empiètement à\ncaractère régulier (plus de 4\nempiètements par heure ou\nplus de 15 minutes par heure)","Empiètement à caractère\nponctuel (maximum 4 empiètements\npar heure\net au maximum 15 minutes par\nheure)","Empiètement non prévu","Risque d'empiètement maitrisé par la mise en place d'une séparation physique (safety fence, ...)","A",{"$f":"IF(AND(G9=\"A\")*(G10<>\"A\"),\"Erreur, si travaux dans la zone dangereuse: vous devez indiquer empiètement à caractère régulier\",\"\")","v":""},"Influence sur la féquence éventuelle du scénario d'accident\nEmpiètement non prévu : Facteur de reduction du risque 0,1 (autrement dit: on estime de la frequence potentielle est de seulement 1/10eme)\nEmpiètement ponctuel : Facteur de reduction du risque 0,5 (autrement dit: on estime que la fréquence potentiellle est de 1/2 eme)",null,{"$f":"IF(G10=\"D\",O10,IF(G10=\"C\",N10,IF(G10=\"B\",M10,IF(G10=\"A\",L10,1))))","v":1},1,0.5,{"$f":"1/10","v":0.1},1E-4]
[4,"Nombre d'agents","Plus de 4 personnes","3 à 4 personnes","1 à 2 personnes",null,"A",null,"Influence sur la gravité : nombre d'agents / 2: Facteur de réduction du risque de 0.5",null,{"$f":"IF(G11=\"D\",O11,IF(G11=\"C\",N11,IF(G11=\"B\",M11,IF(G11=\"A\",L11,1))))","v":1},1,0.75,0.5]
[]
["Résultat en fonction des réponses données","Score le plus fort",null,"Remarques : \n\nL'analyse de risque permet de déterminer les mesures de protection minimales.\n\nSi les conditions d’exécution (visibilité, conditions d’exploitation, moyens humains, méthodes d’exécution) ne permettent pas d'appliquer la mesure de protection minimale, une mesure plus restrictive doit être appliquée en respectant la hiérarchie  des mesures de protection.\n\n\n\n\n\n\n\n\n\n\n"]
["Niveau de risque:",{"$f":"LARGE(P15:Q15,1)","v":8},null,null,null,null,null,null,null,"GRAV",null,{"$f":"IF(M14<1,\"1\",M14)","v":4},{"$f":"LOG((5^N14*K11*K8),5)","v":4},4,null,"score conditionnel (avec réglementation)","score de l'analyse de risque"]
["Groupe de mesure minimale:",{"$f":"IF(B14>=10,\"Voie hors service\",IF(AND(9<=B14,B14<10),\"Blocage des mouvements avec matérialisation\",IF(AND(8<=B14,B14<9),\"Blocage des mouvements sans matérialisation\",IF(AND(7<=B14,B14<8),\"Dispositif d'annonce\",IF(AND(6<=B14,B14<7),\"Délimitation de la zone de chantier\",IF(B14<6,\"Pas de mesure vis-à-vis du traffic\"))))))","v":"Blocage des mouvements sans matérialisation"},null,null,null,null,null,null,null,"FREQ",null,{"$f":"IF(M15<1,\"1\",M15)","v":3.0000000000000004},{"$f":"LOG((5^N15*K9*K10),5)","v":3.0000000000000004},3,null,{"$f":"IF(AND(G8=\"A\",(OR(G10=\"A\",G10=\"B\"))),(8),IF(AND(G10=\"D\",G9<>\"A\"),5,IF(OR(G10=\"A\",G10=\"B\"),7,IF(AND(G10=\"C\",G9=\"B\",G11=\"A\"),7,IF(AND(G10=\"C\",G9=\"B\",G11<>\"A\"),6,IF(AND(G10=\"C\",G9=\"C\"),6,(L14+L15)))))))","v":8},{"$f":"L14+L15","v":7}]
["Sous groupe de mesure minimale:",{"$f":"IF(AND(B15=\"Délimitation de la zone de chantier\",G11<>\"A\"),\"Délimitation matérielle - Balisage ou Agent Garde-Frontière\",IF(AND(B15=\"Délimitation de la zone de chantier\",G11=\"A\"),\"Délimitation matérielle - Balisage\",IF(AND(B15=\"Dispositif d'annonce\",(OR(G10=\"A\",G10=\"B\"))),\"Factionnaire radio avec couverture\",IF(AND(B15=\"Dispositif d'annonce\",(OR(G10=\"A\",G10=\"B\")),G11=\"C\"),\"Vigie\",IF(AND(B15=\"Dispositif d'annonce\",(OR(G10=\"A\",G10=\"B\")),G11<>\"C\"),\"Factionnaire(s)\",\"\")))))","v":""}]
["Commentaire:"]
["Groupe de mesure selectionné:"]
["Si Autre :"]

{"sheet":"Matériel demi-lourd (ETCS)","index":3,"n_rows":19,"n_cols":17,"rows_kept":19,"cut":false,"hidden":false,"merged":[[1,0,1,7],[2,1,2,7],[12,3,18,6],[3,1,3,2],[3,6,3,7],[4,1,4,2]]}
["ANNEXE 1 - Circulaire 05 I-AM/2022"]
["Travaux avec empiètement potentiel type I - Analyse de risques pour déterminer la méthodologie de protection"]
["Type d'activité analysée ","Intervention avec matériel demi-lourd sur ligne ETCS"]
["Référence du chantier ou Activité",null,null,"Date du chantier",null,"Responsable du chantier"]
["Délimitation de la zone de chantier (de PK à PK) "]
[]
["Numéro","Critères d'évaluation","A","B","C","D","Réponse",null,"Commentaires",null,null,"A","B","C","D"]
[1,"Vitesse du trafic","V>160km/h","40km/h<V≤160km/h","V≤ 40km/h",null,"A",null,"Impact sur le facteur de gravité: \nVitesse autorisée maximum 40 km / h: Facteur de réduction du risque 0.2 (autrement dit: on estime que la gravité potentielle d'une collision à basse vitesse est de seulement 1/5 eme).",null,{"$f":"IF(G8=\"D\",O8,IF(G8=\"C\",N8,IF(G8=\"B\",M8,IF(G8=\"A\",L8,1))))","v":1},1,1,0.2]
[2,"Distance entre zone de chantier et voie en service","Dans la zone\ndangereuse","Dans la zone orange","Dans la zone jaune","Dans la zone verte","A",null,"Influence sur la féquence éventuelle du scénario d'accident\nDistance  S > 4,5m : Facteur de reduction du risque 0,008 (autrement dit: on estime de la frequence potentielle est de seulement 1/125eme)",null,{"$f":"IF(G9=\"D\",O9,IF(G9=\"C\",N9,IF(G9=\"B\",M9,IF(G9=\"A\",L9,1))))","v":1},1,0.05,{"$f":"1/100","v":0.01},{"$f":"1/125","v":8.0000000000000002E-3}]
[3,"Temps / Fréquence d'empiétement","Empiètement à\ncaractère régulier (plus de 4\nempiètements par heure ou\nplus de 15 minutes par heure)","Empiètement à caractère\nponctuel (maximum 4 empiètements\npar heure\net au maximum 15 minutes par\nheure)","Empiètement non prévu","Risque d'empiètement maitrisé par la mise en place d'une séparation physique (safety fence, ...)","A",{"$f":"IF(AND(G9=\"A\")*(G10<>\"A\"),\"Erreur, si travaux dans la zone dangereuse: vous devez indiquer empiètement à caractère régulier\",\"\")","v":""},"Influence sur la féquence éventuelle du scénario d'accident\nEmpiètement accidentel : Facteur de reduction du risque 0,008 (autrement dit: on estime de la frequence potentielle est de seulement 1/125eme)\nEmpiètement ponctuel : Facteur de reduction du risque 0,5 (autrement dit: on estime que la fréquence potentiellle est de 1/2 eme)",null,{"$f":"IF(G10=\"D\",O10,IF(G10=\"C\",N10,IF(G10=\"B\",M10,IF(G10=\"A\",L10,1))))","v":1},1,0.5,{"$f":"1/10","v":0.1},1E-4]
[4,"Nombre d'agents","Plus de 4 personnes","3 à 4 personnes","1 à 2 personnes",null,"A",null,"Influence sur la gravité : nombre d'agents / 2: Facteur de réduction du risque de 0.5",null,{"$f":"IF(G11=\"D\",O11,IF(G11=\"C\",N11,IF(G11=\"B\",M11,IF(G11=\"A\",L11,1))))","v":1},1,0.75,0.5]
[]
["Résultat en fonction des réponses données","Score le plus fort",null,"Remarques : \n\nL'analyse de risque permet de déterminer les mesures de protectionminimales.\n\nSi les conditions d’exécution (visibilité, conditions d’exploitation, moyens humains, méthodes d’exécution) ne permettent pas d'appliquer la mesure de protection minimale, une mesure plus restrictive doit être appliquée en respectant la hiérarchie  des mesures de protection.\n\n\n\n\n\n\n\n\n\n\n"]
["Niveau de risque:",{"$f":"LARGE(P15:Q15,1)","v":8},null,null,null,null,null,null,null,"GRAV",null,{"$f":"IF(M14<1,\"1\",M14)","v":5},{"$f":"LOG((5^N14*K11*K8),5)","v":5},5,null,"score conditionnel (avec réglementation)","score de l'analyse de risque"]
["Groupe de mesure minimale:",{"$f":"IF(B14>=10,\"Voie hors service\",IF(AND(9<=B14,B14<10),\"Blocage des mouvements avec matérialisation\",IF(AND(8<=B14,B14<9),\"Blocage des mouvements sans matérialisation\",IF(AND(7<=B14,B14<8),\"Dispositif d'annonce\",IF(AND(6<=B14,B14<7),\"Délimitation de la zone de chantier\",IF(B14<6,\"Pas de mesure vis-à-vis du traffic\"))))))","v":"Blocage des mouvements sans matérialisation"},null,null,null,null,null,null,null,"FREQ",null,{"$f":"IF(M15<1,\"1\",M15)","v":3.0000000000000004},{"$f":"LOG((5^N15*K9*K10),5)","v":3.0000000000000004},3,null,{"$f":"IF(OR(G10=\"A\",G10=\"B\")*OR(G8=\"A\",G8=\"B\"),(8),IF(OR(G10=\"A\",G10=\"B\")*AND(G8=\"C\"),(7),IF(AND(G10=\"C\",G9=\"B\"),7,IF(AND(G10=\"C\",G9=\"C\"),6,(L14+L15)))))","v":8},{"$f":"L14+L15","v":8}]
["Sous groupe de mesure minimale:",{"$f":"IF(AND(B15=\"Délimitation de la zone de chantier\",G11<>\"A\"),\"Délimitation matérielle - Balisage ou Agent Garde-Frontière\",IF(AND(B15=\"Délimitation de la zone de chantier\",G11=\"A\"),\"Délimitation matérielle - Balisage\",IF(AND(B15=\"Dispositif d'annonce\",(OR(G10=\"A\",G10=\"B\"))),\"Factionnaire radio avec couverture\",IF(AND(B15=\"Dispositif d'annonce\",(OR(G10=\"A\",G10=\"B\")),G11=\"C\"),\"Vigie\",IF(AND(B15=\"Dispositif d'annonce\",(OR(G10=\"A\",G10=\"B\")),G11<>\"C\"),\"Factionnaire(s)\",\"\")))))","v":""}]
["Commentaire:","-"]
["Groupe de mesure selectionné:"]
["Si Autre :"]

{"sheet":"Mesurage et Visites (SL)","index":4,"n_rows":19,"n_cols":17,"rows_kept":19,"cut":false,"hidden":false,"merged":[[12,3,18,6],[1,0,1,7],[2,1,2,7],[3,1,3,2],[3,6,3,7],[4,1,4,2]]}
["ANNEXE 1 - Circulaire 05 I-AM/2022"]
["Travaux avec empiètement potentiel type I - Analyse de risques pour déterminer la méthodologie de protection"]
["Type d'activité analysée ","Mesurages et Visites sur ligne équipée de la signalisation latérale"]
["Référence du chantier ou Activité",null,null,"Date du chantier",null,"Responsable du chantier"]
["Délimitation de la zone de chantier (de PK à PK) "]
[]
["Numéro","Critères d'évaluation","A","B","C","D","Réponse",null,"Commentaires",null,null,"A","B","C","D"]
[1,"Vitesse du trafic","V>160km/h","40km/h<V≤160km/h","V≤ 40km/h",null,"A",null,"Impact sur le facteur de gravité: \nVitesse autorisée maximum 40 km / h: Facteur de réduction du risque 0.2 (autrement dit: on estime que la gravité potentielle d'une collision à basse vitesse est de seulement 1/5 eme).",null,{"$f":"IF(G8=\"D\",O8,IF(G8=\"C\",N8,IF(G8=\"B\",M8,IF(G8=\"A\",L8,1))))","v":1},1,1,0.2]
[2,"Distance entre zone de chantier et voie en service","Dans la zone\ndangereuse","Dans la zone orange","Dans la zone jaune","Dans la zone verte","A",null,"Influence sur la féquence éventuelle du scénario d'accident\nDistance  S > 4,5m : Facteur de reduction du risque 0,008 (autrement dit: on estime de la frequence potentielle est de seulement 1/125eme)",null,{"$f":"IF(G9=\"D\",O9,IF(G9=\"C\",N9,IF(G9=\"B\",M9,IF(G9=\"A\",L9,1))))","v":1},1,0.05,{"$f":"1/100","v":0.01},{"$f":"1/125","v":8.0000000000000002E-3}]
[3,"Temps / Fréquence d'empiétement","Empiètement à\ncaractère régulier (plus de 4\nempiètements par heure ou\nplus de 15 minutes par heure)","Empiètement à caractère\nponctuel (maximum 4 empiètements\npar heure\net au maximum 15 minutes par\nheure)","Empiètement non prévu","Risque d'empiètement maitrisé par la mise en place d'une séparation physique (safety fence, ...)","A",{"$f":"IF(AND(G9=\"A\")*(G10<>\"A\"),\"Erreur, si travaux dans la zone dangereuse: vous devez indiquer empiètement à caractère régulier\",\"\")","v":""},"Influence sur la féquence éventuelle du scénario d'accident\nEmpiètement  non prévisible : Facteur de reduction du risque 0,01 (autrement dit: on estime de la frequence potentielle est de seulement 1/100eme)\nEmpiètement ponctuel : Facteur de reduction du risque 0,5 (autrement dit: on estime que la fréquence potentiellle est de 1/2 eme)",null,{"$f":"IF(G10=\"D\",O10,IF(G10=\"C\",N10,IF(G10=\"B\",M10,IF(G10=\"A\",L10,1))))","v":1},1,0.5,{"$f":"1/100","v":0.01},1E-4]
[4,"Nombre d'agents","Plus de 4 personnes","3 à 4 personnes","1 à 2 personnes",null,"A",null,"Influence sur la gravité : nombre d'agents / 2: Facteur de réduction du risque de 0.5",null,{"$f":"IF(G11=\"D\",O11,IF(G11=\"C\",N11,IF(G11=\"B\",M11,IF(G11=\"A\",L11,1))))","v":1},1,0.75,0.5]
[]
["Résultat en fonction des réponses données","Score le plus fort",null,"Remarques : \n\nL'analyse de risque permet de déterminer les mesures de protection minimales.\n\nSi les conditions d’exécution (visibilité, conditions d’exploitation, moyens humains, méthodes d’exécution) ne permettent pas d'appliquer la mesure de protection minimale, une mesure plus restrictive doit être appliquée en respectant la hiérarchie  des mesures de protection.\n\n\n\n\n\n\n\n\n\n\n"]
["Niveau de risque:",{"$f":"LARGE(P15:Q15,1)","v":8},null,null,null,null,null,null,null,"GRAV",null,{"$f":"IF(M14<1,\"1\",M14)","v":4},{"$f":"LOG((5^N14*K11*K8),5)","v":4},4,null,"score conditionnel (avec réglementation)","score de l'analyse de risque"]
["Groupe de mesure minimale:",{"$f":"IF(B14>=10,\"Voie hors service\",IF(AND(9<=B14,B14<10),\"Blocage des mouvements avec matérialisation\",IF(AND(8<=B14,B14<9),\"Blocage des mouvements sans matérialisation\",IF(AND(7<=B14,B14<8),\"Dispositif d'annonce\",IF(AND(6<=B14,B14<7),\"Délimitation de la zone de chantier\",IF(B14<6,\"Pas de mesure vis-à-vis du traffic\"))))))","v":"Blocage des mouvements sans matérialisation"},null,null,null,null,null,null,null,"FREQ",null,{"$f":"IF(M15<1,\"1\",M15)","v":3.0000000000000004},{"$f":"LOG((5^N15*K9*K10),5)","v":3.0000000000000004},3,null,{"$f":"IF(AND(G8=\"A\",(OR(G10=\"A\",G10=\"B\"))),(8),IF(OR(G10=\"A\",G10=\"B\"),(7),IF(AND(G10=\"C\",G9=\"B\"),6,(L14+L15))))","v":8},{"$f":"L14+L15","v":7}]
["Sous groupe de mesure minimale:",{"$f":"IF(AND(B15=\"Délimitation de la zone de chantier\",G11<>\"A\"),\"Délimitation matérielle - Balisage ou Agent Garde-Frontière\",IF(AND(B15=\"Délimitation de la zone de chantier\",G11=\"A\"),\"Délimitation matérielle - Balisage\",IF(AND(B15=\"Dispositif d'annonce\",(OR(G10=\"A\",G10=\"B\")),G11=\"C\"),\"Vigie\",IF(AND(B15=\"Dispositif d'annonce\",(OR(G10=\"A\",G10=\"B\")),G11<>\"C\"),\"Factionnaire(s)\",\"\"))))","v":""}]
["Commentaire:","-"]
["Groupe de mesure selectionné:"]
["Si Autre :"]

{"sheet":"Matériel léger (SL)","index":5,"n_rows":19,"n_cols":17,"rows_kept":19,"cut":false,"hidden":false,"merged":[[1,0,1,7],[2,1,2,7],[12,3,18,6],[3,1,3,2],[3,6,3,7],[4,1,4,2]]}
["ANNEXE 1 - Circulaire 05 I-AM/2022"]
["Travaux avec empiètement potentiel type I - Analyse de risques pour déterminer la méthodologie de protection"]
["Type d'activité analysée "," Intervention avec matériel léger (< 35kg) sur ligne équipée de la signalisation latérale"]
["Référence du chantier ou Activité",null,null,"Date du chantier",null,"Responsable du chantier"]
["Délimitation de la zone de chantier (de PK à PK) "]
[]
["Numéro","Critères d'évaluation","A","B","C","D","Réponse",null,"Commentaires",null,null,"A","B","C","D"]
[1,"Vitesse du trafic","V>160km/h","40km/h<V≤160km/h","V≤ 40km/h",null,"A",null,"Impact sur le facteur de gravité: \nVitesse autorisée maximum 40 km / h: Facteur de réduction du risque 0.2 (autrement dit: on estime que la gravité potentielle d'une collision à basse vitesse est de seulement 1/5 eme).",null,{"$f":"IF(G8=\"D\",O8,IF(G8=\"C\",N8,IF(G8=\"B\",M8,IF(G8=\"A\",L8,1))))","v":1},1,1,0.2]
[2,"Distance entre zone de chantier et voie en service","Dans la zone\ndangereuse","Dans la zone orange","Dans la zone jaune","Dans la zone verte","A",null,"Influence sur la féquence éventuelle du scénario d'accident\nDistance  S > 4,5m : Facteur de reduction du risque 0,008 (autrement dit: on estime de la frequence potentielle est de seulement 1/125eme)",null,{"$f":"IF(G9=\"D\",O9,IF(G9=\"C\",N9,IF(G9=\"B\",M9,IF(G9=\"A\",L9,1))))","v":1},1,0.05,{"$f":"1/100","v":0.01},{"$f":"1/125","v":8.0000000000000002E-3}]
[3,"Temps / Fréquence d'empiétement","Empiètement à\ncaractère régulier (plus de 4\nempiètements par heure ou\nplus de 15 minutes par heure)","Empiètement à caractère\nponctuel (maximum 4 empiètements\npar heure\net au maximum 15 minutes par\nheure)","Empiètement non prévu","Risque d'empiètement maitrisé par la mise en place d'une séparation physique (safety fence, ...)","A",{"$f":"IF(AND(G9=\"A\")*(G10<>\"A\"),\"Erreur, si travaux dans la zone dangereuse: vous devez indiquer empiètement à caractère régulier\",\"\")","v":""},"Influence sur la féquence éventuelle du scénario d'accident\nEmpiètement non prévu : Facteur de reduction du risque 0,1 (autrement dit: on estime de la frequence potentielle est de seulement 1/10eme)\nEmpiètement ponctuel : Facteur de reduction du risque 0,5 (autrement dit: on estime que la fréquence potentiellle est de 1/2 eme)",null,{"$f":"IF(G10=\"D\",O10,IF(G10=\"C\",N10,IF(G10=\"B\",M10,IF(G10=\"A\",L10,1))))","v":1},1,0.5,{"$f":"1/10","v":0.1},1E-4]
[4,"Nombre d'agents","Plus de 4 personnes","3 à 4 personnes","1 à 2 personnes",null,"A",null,"Influence sur la gravité : nombre d'agents / 2: Facteur de réduction du risque de 0.5",null,{"$f":"IF(G11=\"D\",O11,IF(G11=\"C\",N11,IF(G11=\"B\",M11,IF(G11=\"A\",L11,1))))","v":1},1,0.75,0.5]
[]
["Résultat en fonction des réponses données","Score le plus fort",null,"Remarques : \n\nL'analyse de risque permet de déterminer les mesures de protection minimales.\n\nSi les conditions d’exécution (visibilité, conditions d’exploitation, moyens humains, méthodes d’exécution) ne permettent pas d'appliquer la mesure de protection minimale, une mesure plus restrictive doit être appliquée en respectant la hiérarchie  des mesures de protection.\n\n\n\n\n\n\n\n\n\n\n"]
["Niveau de risque:",{"$f":"LARGE(P15:Q15,1)","v":8},null,null,null,null,null,null,null,"GRAV",null,{"$f":"IF(M14<1,\"1\",M14)","v":4},{"$f":"LOG((5^N14*K11*K8),5)","v":4},4,null,"score conditionnel (avec réglementation)","score de l'analyse de risque"]
["Groupe de mesure minimale:",{"$f":"IF(B14>=10,\"Voie hors service\",IF(AND(9<=B14,B14<10),\"Blocage des mouvements avec matérialisation\",IF(AND(8<=B14,B14<9),\"Blocage des mouvements sans matérialisation\",IF(AND(7<=B14,B14<8),\"Dispositif d'annonce\",IF(AND(6<=B14,B14<7),\"Délimitation de la zone de chantier\",IF(B14<6,\"Pas de mesure vis-à-vis du traffic\"))))))","v":"Blocage des mouvements sans matérialisation"},null,null,null,null,null,null,null,"FREQ",null,{"$f":"IF(M15<1,\"1\",M15)","v":3.0000000000000004},{"$f":"LOG((5^N15*K9*K10),5)","v":3.0000000000000004},3,null,{"$f":"IF(AND(G8=\"A\",(OR(G10=\"A\",G10=\"B\"))),(8),IF(AND(G10=\"D\",G9<>\"A\"),5,IF(OR(G10=\"A\",G10=\"B\"),7,IF(AND(G10=\"C\",G9=\"B\",G11=\"A\"),7,IF(AND(G10=\"C\",G9=\"B\",G11<>\"A\"),6,IF(AND(G10=\"C\",G9=\"C\"),6,(L14+L15)))))))","v":8},{"$f":"L14+L15","v":7}]
["Sous groupe de mesure minimale:",{"$f":"IF(AND(B15=\"Délimitation de la zone de chantier\",G11<>\"A\"),\"Délimitation matérielle - Balisage ou Agent Garde-Frontière\",IF(AND(B15=\"Délimitation de la zone de chantier\",G11=\"A\"),\"Délimitation matérielle - Balisage\",IF(AND(B15=\"Dispositif d'annonce\",(OR(G10=\"A\",G10=\"B\")),G11=\"C\"),\"Vigie\",IF(AND(B15=\"Dispositif d'annonce\",(OR(G10=\"A\",G10=\"B\")),G11<>\"C\"),\"Factionnaire(s)\",\"\"))))","v":""}]
["Commentaire:","-"]
["Groupe de mesure selectionné:"]
["Si Autre :"]

{"sheet":"Matériel demi-lourd (SL)","index":6,"n_rows":19,"n_cols":17,"rows_kept":19,"cut":false,"hidden":false,"merged":[[1,0,1,7],[2,1,2,7],[12,3,18,6],[3,1,3,2],[3,6,3,7],[4,1,4,2]]}
["ANNEXE 1 - Circulaire 05 I-AM/2022"]
["Travaux avec empiètement potentiel type I - Analyse de risques pour déterminer la méthodologie de protection"]
["Type d'activité analysée ","Intervention avec matériel demi-lourd sur ligne équipée de la signalisation latérale"]
["Référence du chantier ou Activité",null,null,"Date du chantier",null,"Responsable du chantier"]
["Délimitation de la zone de chantier (de PK à PK) "]
[]
["Numéro","Critères d'évaluation","A","B","C","D","Réponse",null,"Commentaires",null,null,"A","B","C","D"]
[1,"Vitesse du trafic","V>160km/h","40km/h<V≤160km/h","V≤ 40km/h",null,"A",null,"Impact sur le facteur de gravité: \nVitesse autorisée maximum 40 km / h: Facteur de réduction du risque 0.2 (autrement dit: on estime que la gravité potentielle d'une collision à basse vitesse est de seulement 1/5 eme).",null,{"$f":"IF(G8=\"D\",O8,IF(G8=\"C\",N8,IF(G8=\"B\",M8,IF(G8=\"A\",L8,1))))","v":1},1,1,0.2]
[2,"Distance entre zone de chantier et voie en service","Dans la zone\ndangereuse","Dans la zone orange","Dans la zone jaune","Dans la zone verte","A",null,"Influence sur la féquence éventuelle du scénario d'accident\nDistance  S > 4,5m : Facteur de reduction du risque 0,008 (autrement dit: on estime de la frequence potentielle est de seulement 1/125eme)",null,{"$f":"IF(G9=\"D\",O9,IF(G9=\"C\",N9,IF(G9=\"B\",M9,IF(G9=\"A\",L9,1))))","v":1},1,0.05,{"$f":"1/100","v":0.01},{"$f":"1/125","v":8.0000000000000002E-3}]
[3,"Temps / Fréquence d'empiétement","Empiètement à\ncaractère régulier (plus de 4\nempiètements par heure ou\nplus de 15 minutes par heure)","Empiètement à caractère\nponctuel (maximum 4 empiètements\npar heure\net au maximum 15 minutes par\nheure)","Empiètement non prévu","Risque d'empiètement maitrisé par la mise en place d'une séparation physique (safety fence, ...)","A",{"$f":"IF(AND(G9=\"A\")*(G10<>\"A\"),\"Erreur, si travaux dans la zone dangereuse: vous devez indiquer empiètement à caractère régulier\",\"\")","v":""},"Influence sur la féquence éventuelle du scénario d'accident\nEmpiètement accidentel : Facteur de reduction du risque 0,008 (autrement dit: on estime de la frequence potentielle est de seulement 1/125eme)\nEmpiètement ponctuel : Facteur de reduction du risque 0,5 (autrement dit: on estime que la fréquence potentiellle est de 1/2 eme)",null,{"$f":"IF(G10=\"D\",O10,IF(G10=\"C\",N10,IF(G10=\"B\",M10,IF(G10=\"A\",L10,1))))","v":1},1,0.5,{"$f":"1/10","v":0.1},1E-4]
[4,"Nombre d'agents","Plus de 4 personnes","3 à 4 personnes","1 à 2 personnes",null,"A",null,"Influence sur la gravité : nombre d'agents / 2: Facteur de réduction du risque de 0.5",null,{"$f":"IF(G11=\"D\",O11,IF(G11=\"C\",N11,IF(G11=\"B\",M11,IF(G11=\"A\",L11,1))))","v":1},1,0.75,0.5]
[]
["Résultat en fonction des réponses données","Score le plus fort",null,"Remarques : \n\nL'analyse de risque permet de déterminer les mesures de protectionminimales.\n\nSi les conditions d’exécution (visibilité, conditions d’exploitation, moyens humains, méthodes d’exécution) ne permettent pas d'appliquer la mesure de protection minimale, une mesure plus restrictive doit être appliquée en respectant la hiérarchie  des mesures de protection.\n\n\n\n\n\n\n\n\n\n\n"]
["Niveau de risque:",{"$f":"LARGE(P15:Q15,1)","v":8},null,null,null,null,null,null,null,"GRAV",null,{"$f":"IF(M14<1,\"1\",M14)","v":5},{"$f":"LOG((5^N14*K11*K8),5)","v":5},5,null,"score conditionnel (avec réglementation)","score de l'analyse de risque"]
["Groupe de mesure minimale:",{"$f":"IF(B14>=10,\"Voie hors service\",IF(AND(9<=B14,B14<10),\"Blocage des mouvements avec matérialisation\",IF(AND(8<=B14,B14<9),\"Blocage des mouvements sans matérialisation\",IF(AND(7<=B14,B14<8),\"Dispositif d'annonce\",IF(AND(6<=B14,B14<7),\"Délimitation de la zone de chantier\",IF(B14<6,\"Pas de mesure vis-à-vis du traffic\"))))))","v":"Blocage des mouvements sans matérialisation"},null,null,null,null,null,null,null,"FREQ",null,{"$f":"IF(M15<1,\"1\",M15)","v":3.0000000000000004},{"$f":"LOG((5^N15*K9*K10),5)","v":3.0000000000000004},3,null,{"$f":"IF(OR(G10=\"A\",G10=\"B\")*OR(G8=\"A\",G8=\"B\"),(8),IF(OR(G10=\"A\",G10=\"B\")*AND(G8=\"C\"),(7),IF(AND(G10=\"C\",G9=\"B\"),7,IF(AND(G10=\"C\",G9=\"C\"),6,(L14+L15)))))","v":8},{"$f":"L14+L15","v":8}]
["Sous groupe de mesure minimale:",{"$f":"IF(AND(B15=\"Délimitation de la zone de chantier\",G11<>\"A\"),\"Délimitation matérielle - Balisage ou Agent Garde-Frontière\",IF(AND(B15=\"Délimitation de la zone de chantier\",G11=\"A\"),\"Délimitation matérielle - Balisage\",IF(AND(B15=\"Dispositif d'annonce\",(OR(G10=\"A\",G10=\"B\")),G11=\"C\"),\"Vigie\",IF(AND(B15=\"Dispositif d'annonce\",(OR(G10=\"A\",G10=\"B\")),G11<>\"C\"),\"Factionnaire(s)\",\"\"))))","v":""}]
["Commentaire:",{"$f":"IF(AND(B15=\"Blocage des mouvements sans matérialisation\",G8<>\"A\"),\"Le dispositif de protection radio avec couverture est toléré si aucune méthode de blocages des mouvements n'est applicable\",\"\")","v":""}]
["Groupe de mesure selectionné:"]
["Si Autre :"]

{"sheet":"Risicomatrix","index":7,"n_rows":48,"n_cols":13,"rows_kept":48,"cut":false,"hidden":false,"merged":[[1,0,7,0],[0,1,0,8],[37,12,42,12],[25,9,25,11],[28,9,32,9],[28,12,32,12],[33,12,36,12],[37,9,42,9],[28,10,32,10],[33,9,36,9],[33,10,36,10],[46,9,46,10],[43,12,45,12],[26,12,27,12],[26,9,26,10],[27,9,27,10],[45,9,45,10],[43,9,44,9]]}
[null,"Gravité"]
["Fréquence \n",null,1,2,3,4,5,6,7,null,"Niveau de risque ","Description  "]
[null,6,7,8,9,10,11,12,13,null,"≥ 10","Niveau de risque inacceptable: étudiez si d’autres systèmes ou techniques avec un niveau de risque moins élevé sont possibles; si ceci n’est pas le cas effectuez une analyse de risque détaillé afin d’identifier des mesures pour réduire le niveau de risque au moins à un niveau tolérable"]
[null,5,6,7,8,9,10,11,12,null,9,"Niveau de risque élevé : tolérable uniquement moyennant la présence de mesures de réduction de risques et si une réduction de risque plus poussée est difficilement exécutable (à démontrer par une analyse couts-bénéfices documentée)"]
[null,4,5,6,7,8,9,10,11,null,8,"Niveau de risque élevé : tolérable uniquement moyennant la présence de mesures de réduction de risques et si une réduction de risque plus poussée est difficilement exécutable (à démontrer par une analyse couts-bénéfices documentée)"]
[null,3,4,5,6,7,8,9,10,null,7,"Niveau de risque modéré : tolérable moyennant la présence des mesures de réduction de risque; la sélection des mesures est basée sur l’avis d’expert"]
[null,2,3,4,5,6,7,8,9,null,6,"Niveau de risque modéré : tolérable moyennant la présence des mesures de réduction de risque; la sélection des mesures est basée sur l’avis d’expert"]
[null,1,2,3,4,5,6,7,8,null,"≤ 5","Faible niveau de risque : généralement acceptable. des mesures complémentaires ne sont pas exigées"]
[null,null,null,null,null,null,null,"Fréquence ",null,"Score ","Description ","Fréquence "]
[null,null,null,null,null,null,null,null,null,1,"Très improbable ","Moins de 125 ans "]
[null,null,null,null,null,null,null,null,null,2,"Exceptionnel  ","Entre tous les 25 ans et les 125 ans "]
[null,null,null,null,null,null,null,null,null,3,"Inhabituel  ","Entre tous les 25 ans et les 5 ans "]
[null,null,null,null,null,null,null,null,null,4,"Occasionnel ","Entre tous les 5 ans et chaque année "]
[null,null,null,null,null,null,null,null,null,5,"Régulier ","De 1 à 5 fois par an  "]
[null,null,null,null,null,null,null,null,null,6,"Fréquent  ","Plus de 5 fois par an "]
[]
[null,null,null,null,null,null,null,"Gravité",null,"Score ","Description","Gravité (Bien-être au travail et Sécurité d'exploitation)","Gravité (Finance) "]
[null,null,null,null,null,null,null,null,null,1,"Très faible","Blessure légère sans incapacité de travail temporaire  ","x ≤ 24.000 euro"]
[null,null,null,null,null,null,null,null,null,2,"Faible","Plusieurs blessures légères. Incapacité de travail de 1 à 3 jours ","24.000 euro > x ≤ 120.000 euro"]
[null,null,null,null,null,null,null,null,null,3,"Modéré","Incapacité de travail > 3 jours avec de graves séquelles ","120.000 euro > x ≤ 600.000 euro"]
[null,null,null,null,null,null,null,null,null,4,"Considérable","Menace de mort d’une personne ","600.000 euro > x ≤ 3.000.000 euro"]
[null,null,null,null,null,null,null,null,null,5,"Grande","Menace de mort de plusieurs personnes (> 1 à 5 équivalents morts) ","3.000.000 euro > x ≤ 15.000.000 euro"]
[null,null,null,null,null,null,null,null,null,6," Très grande","Menace de mort de plusieurs personnes (> 5 à 25 équivalents morts) ","15.000.000 euro > x ≤ 75.000.000 euro"]
[null,null,null,null,null,null,null,null,null,7,"Catastrophique","Menace de mort de plusieurs personnes (> 25 équivalents morts) ","x > 75.000.000 euro"]
[]
[null,null,null,null,null,null,null,null,null,"Mesures",null,null,"Niveau de risque "]
[null,null,null,null,null,null,null,null,null,"I",null,"Voie Hors Service",10]
[null,null,null,null,null,null,null,null,null,"II",null,"Séparation physique  - Rail Safety-Fence ou équivalent"]
[null,null,null,null,null,null,null,null,null,"III","III.1","ATW-Tx",9]
[null,null,null,null,null,null,null,null,null,null,null,"S 460 + matérialisation"]
[null,null,null,null,null,null,null,null,null,null,null,"S 660 + matérialisation"]
[null,null,null,null,null,null,null,null,null,null,null,"S 428 + matérialisation"]
[null,null,null,null,null,null,null,null,null,null,null,"ZKL"]
[null,null,null,null,null,null,null,null,null,"III","III.2","S460",8]
[null,null,null,null,null,null,null,null,null,null,null,"S660"]
[null,null,null,null,null,null,null,null,null,null,null,"S428"]
[null,null,null,null,null,null,null,null,null,null,null,"S461"]
[null,null,null,null,null,null,null,null,null,"IV","IV.1","Factionnaires Radio avec couverture",7]
[null,null,null,null,null,null,null,null,null,null,"IV.2","Factionnaires Radio sans couverture"]
[null,null,null,null,null,null,null,null,null,null,null,"Factionnaire(s)"]
[null,null,null,null,null,null,null,null,null,null,"IV.3","Vigie"]
[null,null,null,null,null,null,null,null,null,null,"IV.4","ATWS"]
[null,null,null,null,null,null,null,null,null,null,"IV.5","Annonceur"]
[null,null,null,null,null,null,null,null,null,"V","V.1","Délimitation matérielle - balisage",6]
[null,null,null,null,null,null,null,null,null,null,"V.2","Délimitation immatérielle"]
[null,null,null,null,null,null,null,null,null,"VI",null,"Supervision par un agent dédié (agent garde-frontière)"]
[null,null,null,null,null,null,null,null,null,null,null,"Pas de mesures vis-à-vis du traffic",5]
[null,null,null,null,null,null,null,null,null,null,null,"Autre"]